fUST/lending_fUST_20250905
["ID","MTS","AMOUNT","RATE_DAILY","PERIOD"]
[383615685,1757039444139,-480.0,0.00014814,2]
[383615686,1757039444147,-261.80935443,0.00014814,2]
[383615687,1757039444156,-480.0,0.00014814,2]
[383615688,1757039444165,-480.0,0.00014814,2]
[383615689,1757039444174,-480.0,0.00014814,2]
[383615690,1757039444183,-480.0,0.00014814,2]
[383615691,1757039444193,-480.0,0.00014814,2]
[383615692,1757039444202,-481.78000664,0.00014814,2]
[383615693,1757039444212,-480.0,0.00014814,2]
[383615694,1757039444222,-300.04801757,0.00014814,2]
[383615695,1757039444230,-480.0,0.00014814,2]
[383615696,1757039444238,-480.0,0.00014814,2]
[383615697,1757039444246,-476.83376098,0.00014814,2]
[383615698,1757039444255,-480.0,0.00014814,2]
[383615699,1757039444263,-480.0,0.00014814,2]
[383615700,1757039444272,-481.95002631,0.00014814,2]
[383615701,1757039444280,-480.0,0.00014814,2]
[383615702,1757039444288,-481.47178974,0.00014814,2]
[383615703,1757039444296,-480.0,0.00014814,2]
[383615704,1757039444304,-480.0,0.00014814,2]
[383615705,1757039444313,-480.0,0.00014814,2]
[383615706,1757039444322,-480.0,0.00014814,2]
[383615707,1757039444331,-353.46413268,0.00014814,2]
[383615708,1757039444339,-480.0,0.00014814,2]
[383615709,1757039444348,-481.79641584,0.00014814,2]
[383615710,1757039444357,-480.0,0.00014814,2]
[383615711,1757039444365,-480.0,0.00014814,2]
[383615712,1757039444373,-480.0,0.00014814,2]
[383615713,1757039444382,-480.0,0.00014814,2]
[383615714,1757039444390,-480.0,0.00014814,2]
[383615715,1757039444398,-480.0,0.00014814,2]
[383615716,1757039444406,-480.0,0.00014814,2]
[383615717,1757039444415,-480.0,0.00014814,2]
[383615718,1757039444423,-480.0,0.00014814,2]
[383615719,1757039444431,-480.0,0.00014814,2]
[383615720,1757039444439,-480.0,0.00014814,2]
[383615721,1757039444447,-480.0,0.00014814,2]
[383615722,1757039444456,-480.0,0.00014814,2]
[383615723,1757039444464,-480.0,0.00014814,2]
[383615724,1757039444476,-480.0,0.00014814,2]
[383615725,1757039444484,-480.0,0.00014814,2]
[383615726,1757039444493,-480.0,0.00014814,2]
[383615727,1757039444501,-480.0,0.00014814,2]
[383615728,1757039444511,-480.0,0.00014814,2]
[383615729,1757039444519,-480.0,0.00014814,2]
[383615730,1757039444528,-481.45975198,0.00014814,2]
[383615731,1757039444537,-480.0,0.00014814,2]
[383615732,1757039444546,-198.67009916,0.00014814,2]
[383615733,1757039444554,-157.0,0.00014814,2]
[383615734,1757039444564,-500.0,0.00014814,2]
[383615735,1757039444577,-500.0,0.00014814,2]
[383615736,1757039444585,-157.0,0.00014814,2]
[383615737,1757039444594,-303.00045543,0.00014814,2]
[383615738,1757039444602,-157.0,0.00014814,2]
[383615739,1757039444611,-303.58238667,0.00014814,2]
[383615740,1757039444619,-480.0,0.00014814,2]
[383615741,1757039444627,-480.0,0.00014814,2]
[383615742,1757039444636,-480.0,0.00014814,2]
[383615743,1757039444642,-480.0,0.00014814,2]
[383615744,1757039444649,-480.0,0.00014814,2]
[383615745,1757039444656,-480.0,0.00014814,2]
[383615746,1757039444663,-480.0,0.00014814,2]
[383615747,1757039444671,-480.82922733,0.00014814,2]
[383615748,1757039444677,-480.0,0.00014814,2]
[383615749,1757039444686,-480.0,0.00014814,2]
[383615750,1757039444696,-480.0,0.00014814,2]
[383615751,1757039444706,-480.0,0.00014814,2]
[383615752,1757039444715,-480.0,0.00014814,2]
[383615753,1757039444725,-492.45782674,0.00014814,2]
[383615754,1757039444734,-480.0,0.00014814,2]
[383615755,1757039444744,-480.0,0.00014814,2]
[383615756,1757039444753,-482.49951582,0.00014814,2]
[383615757,1757039444766,-480.0,0.00014814,2]
[383615758,1757039444775,-480.0,0.00014814,2]
[383615759,1757039444784,-480.0,0.00014814,2]
[383615760,1757039444794,-480.93943934,0.00014814,2]
[383615761,1757039444896,-480.0,0.00014814,2]
[383615762,1757039444906,-480.0,0.00014814,2]
[383615763,1757039444916,-481.02479938,0.00014814,2]
[383615764,1757039444926,-563.340619,0.00014814,2]
[383615765,1757039444936,-556.68037647,0.00014814,2]
[383615766,1757039444946,-480.85159827,0.00014814,2]
[383615767,1757039444955,-480.0,0.00014814,2]
[383615768,1757039444965,-480.0,0.00014814,2]
[383615769,1757039444975,-480.0,0.00014814,2]
[383615770,1757039444984,-481.3398854,0.00014814,2]
[383615771,1757039444994,-480.0,0.00014814,2]
[383615772,1757039445003,-481.26136006,0.00014814,2]
[383615773,1757039445013,-373.5392589,0.00014814,2]
[383615774,1757039445023,-480.0,0.00014814,2]
[383615775,1757039445032,-480.0,0.00014814,2]
[383615776,1757039445043,-481.57488331,0.00014814,2]
[383615777,1757039445053,-480.0,0.00014814,2]
[383615778,1757039445062,-480.0,0.00014814,2]
[383615779,1757039445072,-480.0,0.00014814,2]
[383615780,1757039445081,-480.0,0.00014814,2]
[383615781,1757039445091,-480.0,0.00014814,2]
[383615782,1757039445101,-480.0,0.00014814,2]
[383615783,1757039445111,-480.0,0.00014814,2]
[383615784,1757039445120,-480.0,0.00014814,2]
[383615785,1757039445129,-481.28442445,0.00014814,2]
[383615786,1757039445139,-209.06304717,0.00014814,2]
[383615787,1757039445148,-481.92551018,0.00014814,2]
[383615788,1757039445157,-480.0,0.00014814,2]
[383615789,1757039445167,-480.25352931,0.00014814,2]
[383615790,1757039445176,-480.0,0.00014814,2]
[383615791,1757039445185,-480.0,0.00014814,2]
[383615792,1757039445195,-480.0,0.00014814,2]
[383615793,1757039445204,-480.0,0.00014814,2]
[383615794,1757039445213,-1000.0,0.00014814,2]
[383615795,1757039445223,-480.0,0.00014814,2]
[383615796,1757039445232,-480.0,0.00014814,2]
[383615797,1757039445241,-480.0,0.00014814,2]
[383615798,1757039445250,-480.0,0.00014814,2]
[383615799,1757039445259,-480.0,0.00014814,2]
[383615800,1757039445268,-480.0,0.00014814,2]
[383615801,1757039445277,-480.0,0.00014814,2]
[383615802,1757039445287,-481.56434624,0.00014814,2]
[383615803,1757039445296,-500.0,0.00014814,2]
[383615804,1757039445305,-249.64307821,0.00014814,2]
[383615805,1757039445315,-480.0,0.00014814,2]
[383615806,1757039445324,-480.0,0.00014814,2]
[383615807,1757039445333,-480.0,0.00014814,2]
[383615808,1757039445343,-480.0,0.00014814,2]
[383615809,1757039445352,-480.0,0.00014814,2]
[383615810,1757039445361,-480.0,0.00014814,2]
[383615811,1757039445371,-480.0,0.00014814,2]
[383615812,1757039445380,-480.0,0.00014814,2]
[383615813,1757039445390,-480.0,0.00014814,2]
[383615814,1757039445399,-480.7210916,0.00014814,2]
[383615815,1757039445408,-480.49916385,0.00014814,2]
[383615816,1757039445418,-480.37325266,0.00014814,2]
[383615817,1757039445427,-483.25044862,0.00014814,2]
[383615818,1757039445437,-480.0,0.00014814,2]
[383615819,1757039445446,-480.0,0.00014814,2]
[383615820,1757039445456,-487.45909298,0.00014814,2]
[383615821,1757039445466,-480.0,0.00014814,2]
[383615822,1757039445475,-482.92988457,0.00014814,2]
[383615823,1757039445485,-482.92342656,0.00014814,2]
[383615824,1757039445494,-481.2869833,0.00014814,2]
[383615825,1757039445503,-480.0,0.00014814,2]
[383615826,1757039445514,-480.0,0.00014814,2]
[383615827,1757039445523,-480.80962522,0.00014814,2]
[383615828,1757039445533,-480.0,0.00014814,2]
[383615829,1757039445543,-480.0,0.00014814,2]
[383615830,1757039445552,-480.0,0.00014814,2]
[383615831,1757039445561,-480.0,0.00014814,2]
[383615832,1757039445571,-480.0,0.00014814,2]
[383615833,1757039445580,-480.0,0.00014814,2]
[383615834,1757039445590,-480.0,0.00014814,2]
[383615835,1757039445600,-480.0,0.00014814,2]
[383615836,1757039445609,-175.50388336,0.00014814,2]
[383615837,1757039445618,-480.0,0.00014814,2]
[383615838,1757039445627,-481.78051002,0.00014814,2]
[383615839,1757039445637,-480.0,0.00014814,2]
[383615840,1757039445646,-480.0,0.00014814,2]
[383615841,1757039445655,-480.0,0.00014814,2]
[383615842,1757039445665,-217.5012271,0.00014814,2]
[383615843,1757039445674,-480.0,0.00014814,2]
[383615844,1757039445683,-480.0,0.00014814,2]
[383615845,1757039445693,-480.0,0.00014814,2]
[383615846,1757039445702,-483.82921443,0.00014814,2]
[383615847,1757039445711,-482.97660631,0.00014814,2]
[383615848,1757039445721,-480.0,0.00014814,2]
[383615849,1757039445731,-480.0,0.00014814,2]
[383615850,1757039445740,-482.35699554,0.00014814,2]
[383615851,1757039445750,-480.0,0.00014814,2]
[383615852,1757039445759,-321.32858367,0.00014814,2]
[383615853,1757039445773,-480.0,0.00014814,2]
[383615854,1757039445783,-446.56560923,0.00014814,2]
[383615855,1757039445792,-480.0,0.00014814,2]
[383615856,1757039445802,-480.0,0.00014814,2]
[383615857,1757039445812,-480.0,0.00014814,2]
[383615858,1757039445822,-486.86720208,0.00014814,2]
[383615859,1757039445831,-492.56666559,0.00014814,2]
[383615860,1757039445840,-490.52027485,0.00014814,2]
[383615861,1757039445849,-487.6987796,0.00014814,2]
[383615862,1757039445859,-480.0,0.00014814,2]
[383615863,1757039445868,-480.0,0.00014814,2]
[383615864,1757039445878,-485.98503056,0.00014814,2]
[383615865,1757039445887,-480.0,0.00014814,2]
[383615866,1757039445897,-480.0,0.00014814,2]
[383615867,1757039445907,-480.0,0.00014814,2]
[383615868,1757039445916,-480.0,0.00014814,2]
[383615869,1757039445925,-485.67598667,0.00014814,2]
[383615870,1757039445934,-480.0,0.00014814,2]
[383615871,1757039445943,-573.81175768,0.00014814,2]
[383615872,1757039445952,-480.0,0.00014814,2]
[383615873,1757039445962,-484.22625116,0.00014814,2]
[383615874,1757039445971,-324.94403463,0.00014814,2]
[383615875,1757039445980,-480.0,0.00014814,2]
[383615876,1757039445989,-454.14467302,0.00014814,2]
[383615877,1757039445998,-480.0,0.00014814,2]
[383615878,1757039446008,-189.63369452,0.00014814,2]
[383615879,1757039446018,-480.0,0.00014814,2]
[383615880,1757039446028,-480.0,0.00014814,2]
[383615881,1757039446037,-480.0,0.00014814,2]
[383615882,1757039446047,-485.06570564,0.00014814,2]
[383615883,1757039446057,-482.55239612,0.00014814,2]
[383615884,1757039446066,-480.0,0.00014814,2]
[383615885,1757039446076,-480.0,0.00014814,2]
[383615886,1757039446086,-483.69918927,0.00014814,2]
[383615887,1757039446095,-484.41684399,0.00014814,2]
[383615888,1757039446105,-480.0,0.00014814,2]
[383615890,1757039446114,-480.0,0.00014814,2]
[383615891,1757039446123,-480.0,0.00014814,2]
[383615892,1757039446132,-480.0,0.00014814,2]
[383615893,1757039446142,-480.0,0.00014814,2]
[383615894,1757039446151,-481.44862236,0.00014814,2]
[383615895,1757039446161,-519.4108925,0.00014814,2]
[383615896,1757039446170,-500.0,0.00014815,2]
[383615897,1757039446179,-500.0,0.00014815,2]
[383615898,1757039446189,-500.0,0.00014816,2]
[383615899,1757039446198,-480.0,0.00014817,2]
[383615900,1757039446208,-500.0,0.00014817,2]
[383615901,1757039446217,-500.0,0.00014817,2]
[383615902,1757039446226,-490.32430609,0.00014817,2]
[383615903,1757039446235,-480.0,0.00014817,2]
[383615904,1757039446245,-480.0,0.00014817,2]
[383615905,1757039446255,-833.23,0.00014817,2]
[383615906,1757039446264,-480.0,0.00014817,2]
[383615907,1757039446274,-480.0,0.00014817,2]
[383615908,1757039446284,-480.0,0.00014817,2]
[383615909,1757039446294,-480.0,0.00014817,2]
[383615910,1757039446303,-480.0,0.00014817,2]
[383615911,1757039446313,-480.0,0.00014817,2]
[383615912,1757039446322,-480.0,0.00014817,2]
[383615913,1757039446332,-480.0,0.00014817,2]
[383615914,1757039446341,-480.0,0.00014817,2]
[383615915,1757039446350,-480.0,0.00014817,2]
[383615916,1757039446359,-480.0,0.00014817,2]
[383615917,1757039446368,-532.81774007,0.00014817,2]
[383615918,1757039446379,-480.0,0.00014817,2]
[383615919,1757039446388,-480.0,0.00014817,2]
[383615920,1757039446397,-480.0,0.00014817,2]
[383615921,1757039446406,-480.0,0.00014817,2]
[383615922,1757039446415,-480.0,0.00014817,2]
[383615923,1757039446425,-480.0,0.00014817,2]
[383615925,1757039446435,-481.80663637,0.00014817,2]
[383615926,1757039446444,-480.0,0.00014817,2]
[383615927,1757039446453,-480.0,0.00014817,2]
[383615928,1757039446463,-480.0,0.00014817,2]
[383615929,1757039446472,-480.0,0.00014817,2]
[383615930,1757039446481,-480.0,0.00014817,2]
[383615931,1757039446491,-480.0,0.00014817,2]
[383615932,1757039446500,-480.0,0.00014817,2]
[383615933,1757039446509,-480.0,0.00014817,2]
[383615934,1757039446519,-480.0,0.00014817,2]
[383615935,1757039446529,-1000.0,0.00014817,2]
[383615936,1757039446538,-1000.0,0.00014817,2]
[383615937,1757039446548,-1000.0,0.00014817,2]
[383615938,1757039446558,-1000.0,0.00014817,2]
[383615939,1757039446567,-286.52507913,0.00014817,2]
[383615940,1757039446576,-480.0,0.00014817,2]
[383615941,1757039446585,-480.0,0.00014817,2]
[383615942,1757039446594,-480.0,0.00014817,2]
[383615943,1757039446603,-480.0,0.00014817,2]
[383615944,1757039446613,-480.0,0.00014817,2]
[383615945,1757039446622,-480.0,0.00014817,2]
[383615946,1757039446631,-480.0,0.00014817,2]
[383615947,1757039446640,-480.0,0.00014817,2]
[383615948,1757039446650,-480.0,0.00014817,2]
[383615949,1757039446659,-480.0,0.00014817,2]
[383615950,1757039446668,-480.0,0.00014817,2]
[383615951,1757039446677,-481.76643751,0.00014817,2]
[383615952,1757039446686,-480.0,0.00014817,2]
[383615953,1757039446695,-480.0,0.00014817,2]
[383615954,1757039446704,-480.0,0.00014817,2]
[383615955,1757039446713,-480.0,0.00014817,2]
[383615956,1757039446723,-480.0,0.00014817,2]
[383615957,1757039446732,-480.0,0.00014817,2]
[383615958,1757039446741,-480.0,0.00014817,2]
[383615959,1757039446750,-480.0,0.00014817,2]
[383615960,1757039446760,-480.0,0.00014817,2]
[383615961,1757039446772,-480.0,0.00014817,2]
[383615962,1757039446781,-500.0,0.00014818,2]
[383615963,1757039446790,-500.0,0.00014819,2]
[383615964,1757039446799,-500.0,0.00014819,2]
[383615965,1757039446808,-500.0,0.00014819,2]
[383615966,1757039446817,-197.59145903,0.00014819,2]
[383615967,1757039446826,-184426.14516359,0.0001482,2]
[383615968,1757039446835,-151.0,0.0001482,2]
[383615969,1757039446845,-151.0,0.0001482,2]
[383615970,1757039446854,-151.0,0.0001482,2]
[383615971,1757039446863,-151.0,0.0001482,2]
[383615972,1757039446872,-151.0,0.0001482,2]
[383615973,1757039446881,-251.838077,0.0001482,2]
[383615974,1757039446890,-151.0,0.0001482,2]
[383615975,1757039446900,-151.0,0.0001482,2]
[383615976,1757039446909,-153.912193,0.0001482,2]
[383615977,1757039446919,-153.295934,0.0001482,2]
[383615978,1757039446928,-151.887428,0.0001482,2]
[383615979,1757039446937,-151.116923,0.0001482,2]
[383615980,1757039446947,-153.73572,0.0001482,2]
[383615981,1757039446955,-151.0,0.0001482,2]
[383615982,1757039446965,-151.152844,0.0001482,2]
[383615983,1757039446974,-151.0,0.0001482,2]
[383615984,1757039446983,-152.351699,0.0001482,2]
[383615985,1757039446992,-151.0,0.0001482,2]
[383615986,1757039447001,-151.0,0.0001482,2]
[383615987,1757039447098,-151.0,0.0001482,2]
[383615988,1757039447108,-165.888802,0.0001482,2]
[383615990,1757039447118,-158.242707,0.0001482,2]
[383615991,1757039447128,-151.0,0.0001482,2]
[383615992,1757039447137,-151.0,0.0001482,2]
[383615993,1757039447147,-151.0,0.0001482,2]
[383615994,1757039447156,-151.0,0.0001482,2]
[383615995,1757039447166,-159.229705,0.0001482,2]
[383615996,1757039447175,-151.0,0.0001482,2]
[383615997,1757039447184,-154.471286,0.0001482,2]
[383615998,1757039447194,-151.0,0.0001482,2]
[383615999,1757039447203,-151.0,0.0001482,2]
[383616000,1757039447213,-154.424043,0.0001482,2]
[383616001,1757039447222,-151.0,0.0001482,2]
[383616002,1757039447231,-151.0,0.0001482,2]
[383616003,1757039447241,-151.0,0.0001482,2]
[383616004,1757039447250,-151.0,0.0001482,2]
[383616005,1757039447259,-151.0,0.0001482,2]
[383616006,1757039447269,-164.34718,0.0001482,2]
[383616007,1757039447278,-151.0,0.0001482,2]
[383616008,1757039447288,-151.0,0.0001482,2]
[383616009,1757039447297,-153.120445,0.0001482,2]
[383616010,1757039447306,-151.0,0.0001482,2]
[383616011,1757039447316,-151.0,0.0001482,2]
[383616012,1757039447325,-151.0,0.0001482,2]
[383616013,1757039447336,-181.85393199,0.0001482,2]
[383616014,1757039447699,-69.70401701,0.0001482,2]
[383616015,1757039447709,-151.0,0.0001482,2]
[383616016,1757039447719,-251.557949,0.0001482,2]
[383616017,1757039447728,-251.557949,0.0001482,2]
[383616018,1757039447738,-251.557949,0.0001482,2]
[383616019,1757039447747,-151.0,0.0001482,2]
[383616020,1757039447756,-183.83155878,0.00014833,2]
[383616021,1757039447768,-500.0,0.00014873,2]
[383616022,1757039447778,-500.0,0.00014873,2]
[383616023,1757039447788,-503.71744996,0.00014873,2]
[383616024,1757039447797,-500.0,0.00014873,2]
[383616025,1757039447807,-500.0,0.00014873,2]
[383616026,1757039447817,-504.92672541,0.00014873,2]
[383616027,1757039447827,-500.0,0.00014873,2]
[383616028,1757039447836,-500.0,0.00014873,2]
[383616029,1757039447847,-500.0,0.00014873,2]
[383616030,1757039447857,-183.83155878,0.00014873,2]
[383616031,1757039447867,-480.0,0.00014917,2]
[383616032,1757039447876,-480.0,0.00014917,2]
[383616033,1757039447886,-480.0,0.00014917,2]
[383616034,1757039447895,-480.0,0.00014917,2]
[383616035,1757039447904,-482.00255633,0.00014917,2]
[383616036,1757039447914,-480.0,0.00014917,2]
[383616037,1757039447923,-480.0,0.00014917,2]
[383616038,1757039447932,-480.0,0.00014917,2]
[383616039,1757039447942,-481.96661301,0.00014917,2]
[383616040,1757039447951,-480.0,0.00014917,2]
[383616041,1757039447961,-4539.9159882,0.00014918,2]
[383616042,1757039447970,-480.0,0.00014918,2]
[383616043,1757039447980,-495.27360896,0.00014918,2]
[383616044,1757039447989,-3854.7383198,0.00014918,2]
[383616045,1757039447999,-480.0,0.00014918,2]
[383616046,1757039448008,-222.91,0.00014918,2]
[383616047,1757039448018,-480.0,0.00014918,2]
[383616048,1757039448028,-480.0,0.00014918,2]
[383616049,1757039448038,-13760.150229,0.00014918,2]
[383616050,1757039448048,-500.74239118,0.00014973,2]
[383616051,1757039448058,-296.81060557,0.00015032,2]
[383616052,1757039448068,-480.0,0.00015084,2]
[383616053,1757039448078,-480.0,0.00015084,2]
[383616054,1757039448087,-480.0,0.00015084,2]
[383616055,1757039448097,-1623.03,0.00015084,2]
[383616056,1757039448107,-596.45,0.00015084,2]
[383616057,1757039448117,-487.90670068,0.00015084,2]
[383616058,1757039448126,-720.98,0.00015084,2]
[383616059,1757039448137,-480.0,0.00015084,2]
[383616060,1757039448147,-480.0,0.00015084,2]
[383616061,1757039448157,-480.0,0.00015084,2]
[383616062,1757039448167,-621.16444424,0.00015084,2]
[383616063,1757039448177,-480.0,0.00015084,2]
[383616064,1757039448186,-480.0,0.00015084,2]
[383616065,1757039448197,-480.0,0.00015084,2]
[383616066,1757039448207,-831.16,0.00015084,2]
[383616067,1757039448220,-480.0,0.00015084,2]
[383616068,1757039448231,-480.0,0.00015084,2]
[383616069,1757039448241,-337.12596391,0.00015086,2]
[383616070,1757039448252,-483.28587927,0.00015086,2]
[383616071,1757039448266,-480.0,0.00015086,2]
[383616072,1757039448276,-480.0,0.00015086,2]
[383616073,1757039448286,-480.0,0.00015086,2]
[383616074,1757039448297,-400.0,0.00015086,2]
[383616075,1757039448307,-480.0,0.00015086,2]
[383616076,1757039448316,-480.0,0.00015086,2]
[383616077,1757039448326,-480.0,0.00015086,2]
[383616078,1757039448336,-480.0,0.00015086,2]
[383616079,1757039448346,-151.0,0.00015086,2]
[383616080,1757039448365,-151.0,0.00015086,2]
[383616081,1757039448375,-151.0,0.00015086,2]
[383616082,1757039448385,-151.0,0.00015086,2]
[383616083,1757039448395,-284.287865,0.00015086,2]
[383616084,1757039448405,-483.24766933,0.00015086,2]
[383616085,1757039448415,-480.0,0.00015086,2]
[383616086,1757039448425,-480.0,0.00015086,2]
[383616087,1757039448436,-480.0,0.00015086,2]
[383616088,1757039448445,-151.0,0.00015086,2]
[383616089,1757039448455,-151.0,0.00015086,2]
[383616090,1757039448464,-480.0,0.00015086,2]
[383616091,1757039448474,-480.0,0.00015086,2]
[383616092,1757039448483,-480.0,0.00015086,2]
[383616093,1757039448493,-480.0,0.00015086,2]
[383616094,1757039448504,-480.0,0.00015086,2]
[383616095,1757039448513,-480.0,0.00015086,2]
[383616096,1757039448523,-480.0,0.00015086,2]
[383616097,1757039448533,-480.0,0.00015086,2]
[383616098,1757039448544,-480.0,0.00015086,2]
[383616099,1757039448555,-480.0,0.00015086,2]
[383616100,1757039448565,-480.0,0.00015086,2]
[383616101,1757039448575,-480.0,0.00015086,2]
[383616102,1757039448586,-480.0,0.00015086,2]
[383616103,1757039448595,-480.0,0.00015086,2]
[383616104,1757039448605,-480.0,0.00015086,2]
[383616105,1757039448614,-480.0,0.00015086,2]
[383616106,1757039448624,-480.0,0.00015086,2]
[383616107,1757039448635,-480.0,0.00015086,2]
[383616108,1757039448645,-480.0,0.00015086,2]
[383616109,1757039448655,-480.0,0.00015086,2]
[383616110,1757039448664,-153.076453,0.00015086,2]
[383616111,1757039448674,-151.0,0.00015086,2]
[383616112,1757039448683,-480.0,0.00015086,2]
[383616113,1757039448692,-480.0,0.00015086,2]
[383616114,1757039448701,-151.918556,0.00015086,2]
[383616115,1757039448711,-480.0,0.00015086,2]
[383616116,1757039448721,-151.0,0.00015086,2]
[383616117,1757039448731,-480.0,0.00015086,2]
[383616118,1757039448741,-480.0,0.00015086,2]
[383616119,1757039448751,-480.0,0.00015086,2]
[383616120,1757039448761,-480.0,0.00015086,2]
[383616121,1757039448775,-480.0,0.00015086,2]
[383616122,1757039448785,-480.0,0.00015086,2]
[383616123,1757039448795,-480.0,0.00015086,2]
[383616124,1757039448805,-157.578788,0.00015086,2]
[383616125,1757039448815,-480.0,0.00015086,2]
[383616126,1757039448824,-480.0,0.00015086,2]
[383616127,1757039448834,-480.0,0.00015086,2]
[383616128,1757039448843,-480.0,0.00015086,2]
[383616129,1757039448853,-480.0,0.00015086,2]
[383616130,1757039448864,-480.0,0.00015086,2]
[383616131,1757039448874,-154.76291,0.00015086,2]
[383616132,1757039448989,-480.0,0.00015086,2]
[383616133,1757039449000,-151.0,0.00015086,2]
[383616134,1757039449011,-480.0,0.00015086,2]
[383616135,1757039449021,-993.86,0.00015086,2]
[383616136,1757039449032,-480.0,0.00015086,2]
[383616137,1757039449043,-480.0,0.00015086,2]
[383616138,1757039449053,-482.11373621,0.00015086,2]
[383616139,1757039449062,-480.0,0.00015086,2]
[383616140,1757039449072,-1010.7,0.00015086,2]
[383616141,1757039449082,-480.0,0.00015086,2]
[383616142,1757039449092,-480.0,0.00015086,2]
[383616143,1757039449101,-647.59,0.00015086,2]
[383616144,1757039449111,-480.0,0.00015086,2]
[383616145,1757039449120,-546.79,0.00015086,2]
[383616146,1757039449130,-483.71849919,0.00015086,2]
[383616147,1757039449140,-480.0,0.00015086,2]
[383616148,1757039449150,-480.0,0.00015086,2]
[383616149,1757039449159,-151.0,0.00015086,2]
[383616150,1757039449169,-151.0,0.00015086,2]
[383616151,1757039449179,-480.0,0.00015086,2]
[383616152,1757039449190,-480.0,0.00015086,2]
[383616153,1757039449199,-480.0,0.00015086,2]
[383616154,1757039449209,-151.0,0.00015086,2]
[383616155,1757039449219,-480.0,0.00015086,2]
[383616156,1757039449229,-153.797488,0.00015086,2]
[383616157,1757039449238,-151.0,0.00015086,2]
[383616158,1757039449248,-480.0,0.00015086,2]
[383616159,1757039449257,-237.010908,0.00015086,2]
[383616160,1757039449267,-481.81024029,0.00015086,2]
[383616161,1757039449276,-151.0,0.00015086,2]
[383616162,1757039449286,-154.287647,0.00015086,2]
[383616163,1757039449296,-480.0,0.00015086,2]
[383616164,1757039449306,-480.0,0.00015086,2]
[383616165,1757039449317,-481.57599325,0.00015086,2]
[383616166,1757039449327,-480.0,0.00015086,2]
[383616167,1757039449337,-480.0,0.00015086,2]
[383616168,1757039449347,-480.0,0.00015086,2]
[383616169,1757039449356,-480.0,0.00015086,2]
[383616170,1757039449366,-151.0,0.00015086,2]
[383616171,1757039449375,-480.0,0.00015086,2]
[383616172,1757039449385,-1393.31,0.00015086,2]
[383616173,1757039449395,-480.0,0.00015086,2]
[383616174,1757039449405,-480.0,0.00015086,2]
[383616175,1757039449414,-480.0,0.00015086,2]
[383616176,1757039449424,-480.0,0.00015086,2]
[383616177,1757039449433,-480.0,0.00015086,2]
[383616178,1757039449442,-1149.92,0.00015086,2]
[383616179,1757039449455,-480.0,0.00015086,2]
[383616180,1757039449465,-480.0,0.00015086,2]
[383616181,1757039449475,-687.55,0.00015086,2]
[383616182,1757039449484,-480.0,0.00015086,2]
[383616183,1757039449493,-480.0,0.00015086,2]
[383616184,1757039449502,-151.0,0.00015086,2]
[383616185,1757039449512,-151.703699,0.00015086,2]
[383616186,1757039449521,-480.0,0.00015086,2]
[383616187,1757039449530,-480.0,0.00015086,2]